bitfinex/quotes_BTCUSD_20240819
["timestamp","ask_amount","ask_price","bid_price","bid_amount"]
[1724073003673,1.07286115,58686.0,58672.0,0.000902]
[1724073003879,1.05886115,58686.0,58672.0,0.000902]
[1724073004281,1.07286115,58686.0,58672.0,0.000902]
[1724073004690,1.08267787,58686.0,58672.0,0.000902]
[1724073005308,1.06867787,58686.0,58672.0,0.000902]
[1724073005710,0.71288187,58686.0,58672.0,0.000902]
[1724073005916,0.41058605,58686.0,58672.0,0.000902]
[1724073006129,0.56698405,58686.0,58672.0,0.000902]
[1724073006509,0.58098405,58686.0,58672.0,0.000902]
[1724073006738,0.39658605,58686.0,58672.0,0.062002]
[1724073007167,0.23198605,58686.0,58677.0,0.083]
[1724073007389,0.15276933,58686.0,58685.0,0.083902]
[1724073007592,0.14337945,58686.0,58685.0,0.083902]
[1724073007799,0.14337945,58686.0,58685.0,1.59140866]
[1724073007800,0.12937945,58686.0,58685.0,1.59140866]
[1724073008205,0.12937945,58686.0,58685.0,1.65210866]
[1724073008382,0.15678283,58697.0,58687.0,0.0607]
[1724073008623,0.12908913,58696.0,58692.0,0.1419]
[1724073008833,0.12908913,58696.0,58693.0,0.001]
[1724073009050,0.12908913,58696.0,58693.0,0.00750666]
[1724073009257,0.12908913,58696.0,58694.0,0.001]
[1724073009482,0.12908913,58696.0,58694.0,0.00721794]
[1724073009697,0.12908913,58696.0,58692.0,0.05360666]
[1724073009912,0.13908913,58696.0,58695.0,1.50721794]
[1724073010120,0.13908913,58696.0,58695.0,1.5]
[1724073010340,0.12908913,58696.0,58695.0,1.5]
[1724073010555,0.13008913,58696.0,58695.0,1.50721794]
[1724073010976,0.12908913,58696.0,58695.0,1.50721794]
[1724073011187,0.14211514,58696.0,58695.0,1.50721794]
[1724073011601,0.12993556,58696.0,58695.0,1.50721794]
[1724073012222,0.13193556,58696.0,58695.0,1.50721794]
[1724073012423,0.14132102,58696.0,58695.0,1.50721794]
[1724073012856,0.13847459,58696.0,58695.0,1.50721794]
[1724073013290,0.14047459,58696.0,58695.0,1.50721794]
[1724073013709,0.13847459,58696.0,58695.0,0.00721794]
[1724073013920,0.17477915,58696.0,58695.0,0.001]
[1724073014127,0.18377915,58696.0,58695.0,0.002]
[1724073014540,0.28377915,58696.0,58695.0,0.002]
[1724073015150,0.28460015,58696.0,58695.0,0.002]
[1724073015357,0.27660015,58696.0,58695.0,0.001]
[1724073015555,0.28060015,58696.0,58695.0,0.001]
[1724073015772,0.52946915,58696.0,58695.0,0.001]
[1724073015984,1.16190715,58696.0,58695.0,0.001]
[1724073016201,1.92018315,58696.0,58695.0,0.001]
[1724073016417,1.92018315,58696.0,58685.0,0.000902]
[1724073016418,0.170393,58688.0,58685.0,0.000902]
[1724073016634,0.64035571,58686.0,58685.0,0.000902]
[1724073016846,0.71374117,58686.0,58685.0,0.000902]
[1724073017055,1.05453717,58686.0,58685.0,0.000902]
[1724073017262,1.32609171,58686.0,58685.0,0.000902]
[1724073017673,1.15453717,58686.0,58685.0,0.000902]
[1724073018281,1.1647786,58686.0,58685.0,0.000902]
[1724073018492,1.15453717,58686.0,58685.0,0.000902]
[1724073018701,1.1647786,58686.0,58685.0,0.000902]
[1724073019309,1.19240491,58686.0,58685.0,0.000902]
[1724073019493,1.2912452,58686.0,58685.0,0.000902]
[1724073019750,1.3052452,58686.0,58685.0,0.000902]
[1724073019956,0.32641491,58686.0,58685.0,0.000902]
[1724073020177,0.26278965,58686.0,58685.0,0.000902]
[1724073020597,0.24878965,58686.0,58685.0,0.000902]
[1724073020800,0.26278965,58686.0,58685.0,0.000902]
[1724073021015,0.27678965,58686.0,58685.0,0.000902]
[1724073021232,0.16654717,58686.0,58685.0,0.000902]
[1724073021453,0.16654717,58686.0,58685.0,0.065302]
[1724073021881,0.16654717,58686.0,58685.0,1.57247012]
[1724073022110,0.15254717,58686.0,58685.0,1.57247012]
[1724073022323,0.13854717,58686.0,58685.0,1.57247012]
[1724073022534,0.15254717,58686.0,58685.0,1.57247012]
[1724073022740,0.14854717,58686.0,58685.0,1.57247012]
[1724073022960,0.15554717,58686.0,58685.0,1.57247012]
[1724073023400,0.15554912,58686.0,58685.0,1.57247012]
[1724073023615,0.14554912,58686.0,58685.0,1.57247012]
[1724073024272,0.15354912,58686.0,58685.0,1.57247012]
[1724073025338,0.15354912,58686.0,58685.0,0.07247012]
[1724073025979,0.15354912,58686.0,58685.0,1.57247012]
[1724073028417,0.14416171,58686.0,58685.0,1.57247012]
[1724073028637,0.15354915,58686.0,58685.0,1.57247012]
[1724073031590,0.15354915,58686.0,58685.0,1.57451663]
[1724073032445,0.18458256,58686.0,58685.0,1.51011663]
[1724073032659,0.18458256,58686.0,58685.0,0.01011663]
[1724073032860,0.36588256,58686.0,58685.0,0.01011663]
[1724073033066,0.36588256,58686.0,58685.0,0.000902]
[1724073036094,0.33484936,58686.0,58685.0,0.000902]
[1724073036945,0.33485044,58686.0,58685.0,0.000902]
[1724073038163,0.32546171,58686.0,58685.0,0.000902]
[1724073038402,0.33485045,58686.0,58685.0,0.000902]
[1724073038653,0.50524845,58686.0,58685.0,0.000902]
[1724073038822,1.85410139,58686.0,58685.0,0.000902]
[1724073038991,1.91690139,58686.0,58685.0,0.000902]
[1724073039373,1.99322623,58686.0,58685.0,0.000902]
[1724073039575,2.01990132,58686.0,58685.0,0.000902]
[1724073039804,2.01302634,58686.0,58685.0,0.000902]
[1724073040444,2.0050273,58686.0,58685.0,0.000902]
[1724073040653,1.94257744,58686.0,58685.0,0.000902]
[1724073040863,1.92857744,58686.0,58685.0,0.000902]
[1724073041067,2.03051059,58686.0,58685.0,0.000902]
[1724073041295,1.92857744,58686.0,58685.0,0.000902]
[1724073041917,1.94257744,58686.0,58685.0,0.000902]
[1724073042570,2.04451059,58686.0,58685.0,0.000902]
[1724073042779,2.05851075,58686.0,58685.0,0.000902]
[1724073043378,1.9565776,58686.0,58685.0,0.000902]
[1724073044436,1.95657752,58686.0,58685.0,0.000902]
[1724073046676,2.08397745,58686.0,58685.0,0.000902]
[1724073046880,1.95657802,58686.0,58685.0,0.000902]
[1724073047088,2.29737402,58686.0,58685.0,0.000902]
[1724073047317,2.32037402,58686.0,58685.0,0.000902]
[1724073047521,2.46855402,58686.0,58685.0,0.000902]
[1724073047745,2.45916374,58686.0,58685.0,0.000902]
[1724073047958,2.46855443,58686.0,58685.0,0.000902]
[1724073049248,2.46855457,58686.0,58685.0,0.000902]
[1724073049714,2.45713757,58686.0,58685.0,0.000902]
[1724073049923,2.45713751,58686.0,58685.0,0.000902]
[1724073051889,2.46397051,58686.0,58685.0,0.000902]
[1724073056591,2.61677684,58686.0,58685.0,0.000902]
[1724073057646,2.46397051,58686.0,58685.0,0.000902]
[1724073058673,2.32720751,58686.0,58685.0,0.000902]
[1724073058895,3.18449351,58686.0,58685.0,0.000902]
[1724073059073,2.99758451,58686.0,58685.0,0.000902]
[1724073059326,2.58626251,58686.0,58685.0,0.000902]
[1724073059955,2.60026251,58686.0,58685.0,0.000902]
[1724073061222,2.59087174,58686.0,58685.0,0.000902]
[1724073061551,2.60026303,58686.0,58685.0,0.000902]
[1724073062929,2.32720803,58686.0,58685.0,0.000902]
[1724073063104,2.97796503,58686.0,58685.0,0.000902]
[1724073063657,2.97796505,58686.0,58685.0,0.000902]
[1724073064951,2.83702405,58686.0,58685.0,0.000902]
[1724073065556,2.32720805,58686.0,58685.0,0.000902]
[1724073066610,2.65226505,58686.0,58685.0,0.000902]
[1724073071104,1.56837411,58686.0,58685.0,0.000902]
[1724073071309,0.19322811,58686.0,58685.0,0.137802]
[1724073071512,0.16655302,58686.0,58685.0,0.137802]
[1724073071722,0.16655302,58686.0,58685.0,1.637802]
[1724073072076,0.16654913,58686.0,58685.0,1.64608392]
[1724073072285,0.13854913,58686.0,58685.0,1.64608392]
[1724073072484,0.15254913,58686.0,58685.0,1.64608392]
[1724073072656,0.16654913,58686.0,58685.0,1.64608392]
[1724073072901,0.15254913,58686.0,58685.0,1.64608392]
[1724073073327,0.15954913,58686.0,58685.0,1.64608392]
[1724073073533,0.15254913,58686.0,58685.0,1.64608392]
[1724073073950,1.00453913,58686.0,58685.0,1.64608392]
[1724073074153,1.34533513,58686.0,58685.0,1.64608392]
[1724073074356,1.33133513,58686.0,58685.0,1.64608392]
[1724073074499,1.3823149,58686.0,58685.0,0.14608392]
[1724073074702,1.55080994,58686.0,58685.0,0.137802]
[1724073074914,1.58994083,58686.0,58685.0,0.137802]
[1724073075114,1.55080994,58686.0,58685.0,0.137802]
[1724073075313,1.57512189,58686.0,58685.0,0.137802]
[1724073075639,1.53013716,58686.0,58685.0,0.137802]
[1724073076002,1.55681239,58686.0,58685.0,0.137802]
[1724073076422,1.65878217,58686.0,58685.0,0.137802]
[1724073076643,1.72297748,58686.0,58685.0,0.137802]
[1724073076842,1.66282127,58686.0,58685.0,0.137802]
[1724073077090,1.66282136,58686.0,58685.0,0.137802]
[1724073077540,1.68832349,58686.0,58685.0,0.137802]
[1724073078494,1.56081282,58686.0,58685.0,0.137802]
[1724073078699,1.55142294,58686.0,58685.0,0.137802]
[1724073078896,1.56081287,58686.0,58685.0,0.137802]
[1724073079349,1.85992388,58686.0,58685.0,0.137802]
[1724073079590,1.73236741,58686.0,58685.0,0.137802]
[1724073083134,1.56081287,58686.0,58685.0,0.137802]
[1724073083334,1.68839578,58686.0,58685.0,0.137802]
[1724073083739,1.56081279,58686.0,58685.0,0.137802]
[1724073084367,1.56081279,58686.0,58685.0,0.000902]
[1724073084368,2.24240479,58686.0,58685.0,0.000902]
[1724073084572,0.17043,58675.0,58674.0,0.000902]
[1724073084777,1.30330122,58675.0,58674.0,0.000902]
[1724073084983,1.61654403,58675.0,58674.0,0.000902]
[1724073087654,1.60715418,58675.0,58674.0,0.000902]
[1724073087856,1.78810062,58675.0,58674.0,0.000902]
[1724073088878,1.288831,58674.0,58673.0,0.056002]
[1724073089051,1.55645558,58674.0,58673.0,0.056002]
[1724073089837,2.06887612,58674.0,58673.0,0.056002]
[1724073090311,1.89732158,58674.0,58673.0,0.056002]
[1724073092067,1.89732158,58674.0,58673.0,0.0569051]
[1724073092308,0.04294996,58675.0,58673.0,0.1384051]
[1724073092558,0.068324,58684.0,58683.0,0.143]
[1724073092760,0.19850191,58684.0,58683.0,1.643]
[1724073092976,0.19850191,58684.0,58683.0,0.143]
[1724073093180,0.19850191,58684.0,58683.0,0.15010293]
[1724073093555,0.19850191,58684.0,58683.0,0.15110293]
[1724073094276,0.19934836,58684.0,58683.0,0.15110293]
[1724073094877,0.19934836,58684.0,58683.0,0.15010293]
[1724073095010,0.19934836,58684.0,58683.0,0.15110293]
[1724073095228,0.19934836,58684.0,58683.0,0.15010293]
[1724073095445,0.19934836,58684.0,58683.0,0.15110293]
[1724073095892,0.06917045,58684.0,58683.0,0.15510292]
[1724073096940,0.06917045,58684.0,58683.0,1.65510292]
[1724073097546,0.06917045,58684.0,58683.0,1.64610292]
[1724073098404,0.00084645,58684.0,58683.0,1.64610292]
[1724073098737,0.00284645,58684.0,58683.0,1.64610292]
[1724073099222,0.00084645,58684.0,58683.0,1.64610292]
[1724073100020,0.00084645,58684.0,58683.0,0.13610292]
[1724073100609,0.00084645,58684.0,58683.0,1.63610292]
[1724073101189,0.00084645,58684.0,58683.0,1.64110292]
[1724073103549,0.00084645,58684.0,58683.0,0.14110292]
[1724073104064,0.00084645,58684.0,58683.0,1.64110292]
[1724073109668,0.00084645,58684.0,58683.0,2.05580292]
[1724073110021,0.00084645,58684.0,58683.0,1.74110292]
[1724073116567,0.00084645,58684.0,58683.0,1.73610292]
[1724073116965,0.00184645,58684.0,58683.0,1.74510292]
[1724073117555,0.00084645,58684.0,58683.0,1.75910292]
[1724073117704,0.00184645,58684.0,58683.0,1.76810292]
[1724073119934,0.00184645,58684.0,58683.0,1.76900602]
[1724073120183,0.00266745,58684.0,58683.0,1.76900602]
[1724073123022,0.00266745,58684.0,58683.0,1.77200602]
[1724073123408,0.01205357,58684.0,58683.0,1.77200602]
[1724073123958,0.01205357,58684.0,58683.0,1.76900602]
[1724073124133,0.00266745,58684.0,58683.0,1.76900602]
[1724073124356,0.00366745,58684.0,58683.0,1.77800602]
[1724073124571,0.00366745,58684.0,58683.0,1.94956056]
[1724073124754,0.00366745,58684.0,58683.0,1.95256056]
[1724073125084,0.000821,58692.0,58691.0,0.14139999]
[1724073125280,0.000821,58692.0,58691.0,0.43595453]
[1724073125523,0.000821,58692.0,58691.0,0.44288754]
[1724073125923,0.000821,58692.0,58691.0,0.44388754]
[1724073127407,0.000821,58692.0,58691.0,0.45788754]
[1724073128127,0.000821,58692.0,58691.0,0.300333]
[1724073128559,0.000821,58692.0,58691.0,0.3101861]
[1724073128987,0.000821,58692.0,58691.0,0.2871861]
[1724073130974,0.000821,58692.0,58691.0,0.3101861]
[1724073132034,0.000821,58692.0,58691.0,0.300333]
[1724073132248,0.000821,58692.0,58691.0,0.162933]
[1724073132452,0.000821,58692.0,58691.0,1.662933]
[1724073135749,0.000821,58692.0,58691.0,1.539933]
[1724073136157,0.01020654,58692.0,58691.0,1.539933]
[1724073136353,0.000821,58692.0,58691.0,1.539933]
[1724073136578,0.01020689,58692.0,58691.0,1.539933]
[1724073137023,1.06992545,58692.0,58691.0,0.03493301]
[1724073137307,0.8034036,58692.0,58691.0,0.028]
[1724073137525,0.79316445,58692.0,58691.0,0.028]
[1724073137698,0.80937929,58692.0,58691.0,0.028]
[1724073137900,1.15014029,58692.0,58691.0,0.014]
[1724073138448,0.170392,58688.0,58687.0,0.001]
[1724073138634,0.170404,58684.0,58683.0,0.0009031]
[1724073138931,0.2123023,58684.0,58683.0,0.0009031]
[1724073139134,0.02560073,58684.0,58683.0,0.1460031]
[1724073139467,0.02645349,58698.0,58691.0,0.00399999]
[1724073139667,0.01020664,58692.0,58691.0,0.14709999]
[1724073139998,0.01020664,58692.0,58691.0,0.17699524]
[1724073140196,0.01020611,58692.0,58691.0,0.18099524]
[1724073140677,0.01020611,58692.0,58691.0,0.17699524]
[1724073141089,0.01020611,58692.0,58691.0,0.17999524]
[1724073141905,0.01020611,58692.0,58691.0,0.19399524]
[1724073142117,0.15060611,58692.0,58691.0,0.02689525]
[1724073142319,0.16690027,58692.0,58691.0,0.02689525]
[1724073142727,0.18311092,58692.0,58691.0,0.017]
[1724073142976,0.35349092,58692.0,58691.0,0.01899999]
[1724073143154,0.35349092,58692.0,58691.0,1.53199999]
[1724073143352,0.69425192,58692.0,58691.0,1.55499999]
[1724073143578,0.69425192,58692.0,58691.0,1.54889524]
[1724073143818,0.69425288,58692.0,58691.0,1.54889524]
[1724073143981,0.69425288,58692.0,58691.0,1.55589524]
[1724073144137,0.652362,58692.0,58691.0,1.54189524]
[1724073144356,0.35349506,58692.0,58691.0,1.54189524]
[1724073144559,0.35349506,58692.0,58691.0,1.55089524]
[1724073144763,0.18311506,58692.0,58691.0,1.55089524]
[1724073145365,0.35349506,58692.0,58691.0,1.55089524]
[1724073146183,0.18311506,58692.0,58691.0,0.05089524]
[1724073146385,0.35349506,58692.0,58691.0,0.05089524]
[1724073146593,0.04271506,58692.0,58691.0,1.54399999]
[1724073146793,0.0265024,58692.0,58691.0,1.54]
[1724073147008,0.0265024,58692.0,58691.0,1.55089524]
[1724073148245,0.01020704,58692.0,58691.0,1.55089524]
[1724073148428,0.02650168,58692.0,58691.0,1.55089524]
[1724073149250,0.10950168,58692.0,58691.0,1.55089524]
[1724073149424,0.12571393,58692.0,58691.0,1.55089524]
[1724073149639,0.12571393,58692.0,58691.0,1.54399999]
[1724073149840,0.12571393,58692.0,58691.0,1.55090572]
[1724073150401,0.12571503,58692.0,58691.0,1.55090572]
[1724073151347,0.12571501,58692.0,58691.0,1.55090572]
[1724073151770,0.27979992,58692.0,58691.0,1.55090572]
[1724073151971,1.02382192,58692.0,58691.0,0.04690573]
[1724073152212,0.68306092,58692.0,58691.0,0.04690573]
[1724073152353,0.68306092,58692.0,58691.0,0.04]
[1724073152566,1.12723956,58692.0,58691.0,0.016]
[1724073152767,1.46800056,58692.0,58691.0,0.016]
[1724073153418,1.12723956,58692.0,58691.0,0.016]
[1724073153825,1.46800056,58692.0,58691.0,0.016]
[1724073154413,1.12723956,58692.0,58691.0,0.017]
[1724073154745,1.12723956,58692.0,58691.0,0.01]
[1724073155509,1.12723956,58692.0,58691.0,0.001]
[1724073155975,1.12723956,58692.0,58691.0,0.004]
[1724073156174,1.12723956,58692.0,58691.0,0.005]
[1724073156379,1.12723956,58692.0,58691.0,0.00699999]
[1724073157993,1.12723956,58692.0,58691.0,0.004]
[1724073158989,1.46800056,58692.0,58691.0,0.004]
[1724073159192,1.61998514,58692.0,58691.0,0.004]
[1724073159392,1.46800056,58692.0,58691.0,0.004]
[1724073160491,1.12723956,58692.0,58691.0,0.00699999]
[1724073162651,1.46800056,58692.0,58691.0,0.004]
[1724073162854,1.5780613,58692.0,58691.0,0.004]
[1724073163063,1.65456535,58692.0,58691.0,0.004]
[1724073163269,1.57000596,58692.0,58691.0,0.004]
[1724073163428,1.59667914,58692.0,58691.0,0.004]
[1724073163628,1.49467374,58692.0,58691.0,0.004]
[1724073163901,1.93743348,58692.0,58691.0,0.003]
[1724073164081,1.59767248,58692.0,58684.0,0.0009031]
[1724073164285,1.335007,58685.0,58684.0,0.0009031]
[1724073164484,1.46462953,58685.0,58684.0,0.0009031]
[1724073166115,1.46462953,58685.0,58684.0,0.0079031]
[1724073166416,1.45962953,58685.0,58684.0,0.0079031]
[1724073167010,1.45462953,58685.0,58684.0,0.0129031]
[1724073167615,1.44962953,58685.0,58684.0,0.0129031]
[1724073168674,1.79043153,58685.0,58684.0,0.0129031]
[1724073169548,1.79043153,58685.0,58684.0,0.0059031]
[1724073169776,1.79043153,58685.0,58684.0,0.0009031]
[1724073169977,1.79243153,58685.0,58684.0,0.0009031]
[1724073170208,1.79143153,58685.0,58684.0,0.0009031]
[1724073170408,1.79243153,58685.0,58684.0,0.0009031]
[1724073170565,1.79143153,58685.0,58684.0,0.0009031]
[1724073170979,1.79243153,58685.0,58684.0,0.0009031]
[1724073172282,1.45162953,58685.0,58684.0,0.0009031]
[1724073177687,1.50259398,58685.0,58684.0,0.0009031]
[1724073177890,1.50259398,58685.0,58684.0,0.14410309]
[1724073177891,0.002,58685.0,58684.0,0.14410309]
[1724073178090,0.002,58685.0,58684.0,0.16710309]
[1724073178254,0.002,58685.0,58684.0,0.17752943]
[1724073178466,0.002,58685.0,58684.0,1.67752943]
[1724073178865,0.001,58685.0,58684.0,1.67752943]
[1724073179267,0.000821,58692.0,58691.0,0.14499999]
[1724073179467,0.000821,58692.0,58691.0,0.14599999]
[1724073179671,0.000821,58692.0,58691.0,0.15298764]
[1724073180511,0.000821,58692.0,58691.0,0.15498764]
[1724073180994,0.000821,58699.0,58698.0,0.002]
[1724073181156,0.00035,58700.0,58699.0,0.29669999]
[1724073181372,0.00035,58700.0,58699.0,0.57166057]
[1724073181578,0.00035,58700.0,58699.0,2.10463505]
[1724073181777,0.00035,58700.0,58699.0,2.10263505]
[1724073182153,0.00011,58705.0,58704.0,0.14189999]
[1724073182391,0.00011,58705.0,58704.0,0.44086046]
[1724073182586,0.0006604,58712.0,58708.0,0.37869999]
[1724073182766,0.0006604,58712.0,58708.0,0.57325453]
[1724073183183,0.0006604,58712.0,58708.0,2.14113984]
[1724073184422,0.0006604,58712.0,58708.0,2.15513984]
[1724073184640,0.0006604,58712.0,58708.0,1.86343984]
[1724073185801,0.0006604,58712.0,58708.0,1.87743984]
[1724073186025,0.0006604,58712.0,58708.0,1.86343984]
[1724073186227,0.0006604,58712.0,58708.0,1.84943984]
[1724073186490,0.0006604,58712.0,58708.0,1.86343984]
[1724073186722,0.0006604,58712.0,58708.0,1.87743984]
[1724073187542,0.0006604,58712.0,58708.0,2.16913984]
[1724073188231,0.0006604,58712.0,58708.0,1.87743984]
[1724073188875,0.0006604,58712.0,58708.0,1.86343984]
[1724073189000,0.0006604,58712.0,58708.0,1.87743984]
[1724073189213,0.0006604,58712.0,58708.0,1.6918853]
[1724073189408,0.0006604,58712.0,58708.0,1.7058853]
[1724073189613,0.0006604,58712.0,58708.0,1.6918853]
[1724073189864,0.0006604,58712.0,58708.0,1.6778853]
[1724073190069,0.0006604,58712.0,58708.0,1.5488853]
[1724073190271,0.0006604,58712.0,58708.0,1.5628853]
[1724073190621,0.0006604,58712.0,58708.0,1.5488853]
[1724073190822,0.0006604,58712.0,58708.0,1.5628853]
[1724073191294,0.170326,58711.0,58708.0,1.5628853]
[1724073191523,0.170328,58710.0,58708.0,1.5628853]
[1724073191730,0.0006604,58712.0,58708.0,1.5488853]
[1724073191948,0.170326,58711.0,58708.0,1.5488853]
[1724073192163,0.17033,58710.0,58708.0,1.5488853]
[1724073192355,0.170328,58711.0,58708.0,1.5258853]
[1724073192573,0.340656,58711.0,58708.0,1.5258853]
[1724073192776,0.340656,58711.0,58708.0,0.0258853]
[1724073192995,0.340656,58711.0,58708.0,0.0118853]
[1724073192996,0.17074226,58709.0,58708.0,0.0118853]
[1724073193187,0.17074226,58709.0,58708.0,0.011]
[1724073193188,0.85206826,58709.0,58708.0,0.011]
[1724073193408,0.91556826,58709.0,58708.0,0.025]
[1724073193841,0.91556826,58709.0,58708.0,0.026]
[1724073194042,0.51222626,58709.0,58708.0,0.028]
[1724073194289,0.85288926,58709.0,58708.0,0.028]
[1724073194463,0.85288926,58709.0,58708.0,0.026]
[1724073194916,0.85288926,58709.0,58708.0,0.01899999]
[1724073195245,0.85288926,58709.0,58708.0,0.021]
[1724073195649,0.85288926,58709.0,58708.0,0.023]
[1724073195847,0.85288926,58709.0,58708.0,0.003]
[1724073196073,0.00123226,58709.0,58708.0,0.003]
[1724073196274,0.17156326,58709.0,58708.0,0.009]
[1724073196477,0.17156326,58709.0,58708.0,0.02]
[1724073196659,0.17156326,58709.0,58708.0,0.00499999]
[1724073196861,0.00123226,58709.0,58708.0,0.00499999]
[1724073197246,0.00123226,58709.0,58708.0,0.01499999]
[1724073197363,0.00123226,58709.0,58708.0,0.02799999]
[1724073197563,0.00123226,58709.0,58708.0,0.03478839]
[1724073197768,0.00123226,58709.0,58708.0,0.04778839]
[1724073198371,0.00123226,58709.0,58708.0,0.05578839]
[1724073198792,0.00123226,58709.0,58708.0,0.04778839]
[1724073199298,0.00123226,58709.0,58708.0,0.05778839]
[1724073199497,0.00123226,58709.0,58708.0,0.03478839]
[1724073199900,0.17156326,58709.0,58708.0,0.03478839]
[1724073200554,0.85288926,58709.0,58708.0,0.03478839]
[1724073200784,0.85288926,58709.0,58708.0,0.0327884]
[1724073200987,0.93498926,58709.0,58708.0,0.0307884]
[1724073201525,0.59432626,58709.0,58708.0,0.026]
[1724073201922,0.93498926,58709.0,58708.0,0.026]
[1724073202683,0.93498926,58709.0,58708.0,0.024]
[1724073203297,0.93498926,58709.0,58708.0,0.026]
[1724073203720,0.93498926,58709.0,58708.0,0.024]
[1724073204850,0.93498926,58709.0,58708.0,0.023]
[1724073204993,0.99728926,58709.0,58708.0,0.023]
[1724073205196,1.33795226,58709.0,58708.0,0.023]
[1724073205399,1.12383897,58709.0,58708.0,0.023]
[1724073205839,0.99728926,58709.0,58708.0,0.025]
[1724073206076,0.85288926,58709.0,58708.0,0.026]
[1724073206662,0.51222626,58709.0,58708.0,0.02799999]
[1724073206863,0.00123226,58709.0,58708.0,0.02799999]
[1724073207085,0.17156326,58709.0,58708.0,0.02799999]
[1724073208100,0.00123226,58709.0,58708.0,0.02799999]
[1724073208455,0.00123226,58709.0,58708.0,0.08979999]
[1724073210918,0.00123226,58709.0,58708.0,0.02799999]
[1724073211350,0.00123226,58709.0,58708.0,0.02699999]
[1724073211351,0.91938926,58709.0,58708.0,0.02699999]
[1724073211532,1.26005226,58709.0,58708.0,0.02799999]
[1724073211878,1.26005226,58709.0,58708.0,0.023]
[1724073212216,1.26005226,58709.0,58708.0,0.024]
[1724073213018,1.26005226,58709.0,58708.0,0.023]
[1724073214460,1.26005226,58709.0,58708.0,0.024]
[1724073214858,0.17156326,58709.0,58708.0,0.026]
[1724073215064,0.51222626,58709.0,58708.0,0.026]
[1724073216473,1.32010197,58709.0,58708.0,0.023]
[1724073223840,0.97943897,58709.0,58708.0,0.023]
[1724073224465,0.97943897,58709.0,58708.0,0.02983855]
[1724073224466,1.32010197,58709.0,58708.0,0.02983855]
[1724073224903,1.32010197,58709.0,58708.0,0.03283854]
[1724073225128,1.32010197,58709.0,58708.0,0.03083855]
[1724073225553,1.32010197,58709.0,58708.0,0.02983855]
[1724073226292,1.32010197,58709.0,58708.0,0.03283854]
[1724073226711,1.32010197,58709.0,58708.0,0.02983855]
[1724073226913,1.32010197,58709.0,58708.0,0.03083855]
[1724073227114,1.32010197,58709.0,58708.0,0.02983855]
[1724073228211,1.32010197,58709.0,58708.0,0.023]
[1724073228761,1.32010197,58709.0,58708.0,0.02983855]
[1724073229411,1.46410197,58709.0,58708.0,0.02983855]
[1724073229613,0.00123226,58709.0,58708.0,0.026]
[1724073230008,0.00123226,58709.0,58708.0,0.03624481]
[1724073230212,0.00123226,58709.0,58708.0,0.0382448]
[1724073230389,0.00123226,58709.0,58708.0,1.52799999]
[1724073230814,0.00123226,58709.0,58708.0,1.53483854]
[1724073231134,0.00123226,58709.0,58708.0,0.03483854]
[1724073238423,0.00123226,58709.0,58708.0,1.52799999]
[1724073238647,0.00123226,58709.0,58708.0,1.55099999]
[1724073238850,0.00123226,58709.0,58708.0,1.55782216]
[1724073239639,0.51222626,58709.0,58708.0,0.03482216]
[1724073239889,0.93338926,58709.0,58708.0,0.026]
[1724073240118,0.99578926,58709.0,58708.0,0.026]
[1724073240631,0.99578926,58709.0,58708.0,0.02799999]
[1724073240872,1.0469094,58709.0,58708.0,0.026]
[1724073242590,1.0469094,58709.0,58708.0,0.02799999]
[1724073242806,1.56524225,58709.0,58708.0,0.023]
[1724073243009,1.83032747,58709.0,58708.0,0.023]
[1724073243209,1.48966447,58709.0,58708.0,0.023]
[1724073243856,1.48966447,58709.0,58708.0,0.013]
[1724073244091,0.8517,58706.0,58705.0,0.00390309]
[1724073244265,1.42161365,58706.0,58705.0,0.00390309]
[1724073244487,0.56214514,58706.0,58705.0,0.0039031]
[1724073244644,0.51102,58706.0,58705.0,0.0039031]
[1724073244844,0.51102,58706.0,58705.0,0.00590309]
[1724073245266,0.51102,58706.0,58705.0,0.01273346]
[1724073245476,0.22146514,58706.0,58705.0,0.00590309]
[1724073245677,0.22146514,58706.0,58705.0,0.01273346]
[1724073246040,0.17034,58706.0,58705.0,0.00590309]
[1724073246396,0.05112514,58707.0,58706.0,0.00399999]
[1724073246691,0.170336,58708.0,58707.0,0.00399999]
[1724073246900,0.170336,58708.0,58707.0,0.00499999]
[1724073247325,0.511005,58708.0,58707.0,0.00499999]
[1724073247536,0.851674,58708.0,58707.0,0.003]
[1724073248368,0.851674,58708.0,58707.0,0.011]
[1724073248583,0.90279816,58708.0,58707.0,0.011]
[1724073248784,0.927274,58708.0,58707.0,0.008]
[1724073249000,1.0900225,58708.0,58707.0,0.008]
[1724073249204,1.328443,58708.0,58707.0,0.008]
[1724073249408,1.55739035,58708.0,58707.0,0.014]
[1724073249612,1.45513777,58708.0,58707.0,0.014]
[1724073250824,1.62669231,58708.0,58707.0,0.014]
[1724073251029,1.82247055,58708.0,58707.0,0.014]
[1724073252304,1.82247055,58708.0,58707.0,0.008]
[1724073252509,1.82447055,58708.0,58707.0,0.008]
[1724073253144,1.67856,58706.0,58705.0,0.0009031]
[1724073253451,1.83220871,58706.0,58705.0,0.0009031]
[1724073253635,1.49152871,58706.0,58705.0,0.0009031]
[1724073254596,1.49152871,58706.0,58705.0,0.0029031]
[1724073255403,1.46486493,58706.0,58705.0,0.0029031]
[1724073255606,1.46486493,58706.0,58705.0,0.0039031]
[1724073255809,1.5925661,58706.0,58705.0,0.0039031]
[1724073256185,1.5925661,58706.0,58705.0,0.0009031]
[1724073256800,1.5965661,58706.0,58705.0,0.0009031]
[1724073257004,1.5925661,58706.0,58705.0,0.0029031]
[1724073257211,1.5875661,58706.0,58705.0,0.0029031]
[1724073257421,1.5875661,58706.0,58705.0,0.0039031]
[1724073257626,1.58754992,58706.0,58705.0,0.0039031]
[1724073259117,1.45986493,58706.0,58705.0,0.0039031]
[1724073260404,1.58754992,58706.0,58705.0,0.0039031]
[1724073260832,1.45986493,58706.0,58705.0,0.0039031]
[1724073261003,1.56199033,58706.0,58705.0,0.0049031]
[1724073261758,1.56199033,58706.0,58705.0,0.0039031]
[1724073262007,1.56198371,58706.0,58705.0,0.0039031]
[1724073262765,1.07580371,58706.0,58705.0,0.0049031]
[1724073262987,0.07658579,58706.0,58705.0,0.00890309]
[1724073263204,0.05228446,58709.0,58708.0,0.00399999]
[1724073263399,0.51222626,58709.0,58708.0,0.00499999]
[1724073263601,0.51222626,58709.0,58708.0,0.00399999]
[1724073263755,0.85288926,58709.0,58708.0,0.00299999]
[1724073263958,0.511003,58708.0,58707.0,0.00499999]